fUSD/lending_fUSD_20240329
["ID","MTS","AMOUNT","RATE_DAILY","PERIOD"]
[320934532,1711716677732,-11881.90766407,0.000666,60]
[320934533,1711716677777,-493539.9151845,0.000666,60]
[320934534,1711716677790,-29724.36565645,0.000666,60]
[320934535,1711716677803,-1663.12439327,0.000666,60]
[320934536,1711716677832,-500.0,0.0005315,120]
[320934537,1711716677842,-508.28687562,0.000666,60]
[320934538,1711716677855,-746.703444,0.000666,60]
[320934539,1711716677867,-619.22892304,0.000666,60]
[320934540,1711716677884,-636.49603942,0.00049315,120]
[320934541,1711716677894,-50.87969957,0.000666,60]
[320934542,1711716677912,-343.37895589,0.00053424,120]
[320934543,1711716677922,-2639.22104411,0.000666,60]
[320934544,1711716677946,-271.04559521,0.000666,60]
[320934545,1711716677958,-589.57945547,0.000666,60]
[320934546,1711716677971,-251.33362,0.000666,60]
[320934547,1711716677984,-1729.15000002,0.000666,60]
[320934548,1711716677997,-13903.30508657,0.000666,60]
[320934549,1711716678011,-56333.29198418,0.000666,60]
[320934550,1711716678024,-5378.256931,0.000666,60]
[320934551,1711716678037,-37528.61275182,0.000666,60]
[320934552,1711716678156,-294.88193264,0.00048417,4]
[320934553,1711716678168,-1468.52222085,0.00049314,4]
[320934554,1711716678179,-1000.0,0.00049314,4]
[320934555,1711716678190,-147.74584651,0.00049315,120]
[320934556,1711716678202,-352.25415349,0.00049315,120]
[320934557,1711716678212,-500.0,0.00049315,120]
[320934558,1711716678222,-500.0,0.00049589,120]
[320934559,1711716678232,-209.56,0.00049863,120]
[320934560,1711716678243,-153.0,0.00051204,7]
[320934561,1711716678254,-500.0,0.00058356,120]
[320934562,1711716678264,-500.0,0.00058356,120]
[320934563,1711716678274,-500.0,0.00058356,120]
[320934564,1711716678284,-500.0,0.00058356,120]
[320934565,1711716678295,-500.0,0.00058356,120]
[320934566,1711716678436,-500.0,0.00058356,120]
[320934567,1711716678447,-500.0,0.00058356,120]
[320934568,1711716678458,-500.0,0.00058356,120]
[320934569,1711716678471,-2000.0,0.000644,120]
[320934570,1711716678481,-55087.02970477,0.000666,60]
[320934571,1711716678495,-31010.1898688,0.000666,60]
[320934572,1711716678508,-115241.08051703,0.000666,60]
[320934573,1711716678521,-9763.71130001,0.000666,60]
[320934574,1711716678534,-588.01461276,0.000666,60]
[320934575,1711716678547,-352.16108145,0.000666,60]
[320934576,1711716678560,-314.47951001,0.000666,60]
[320934577,1711716678578,-552.86,0.00049315,120]
[320934578,1711716678588,-3696.71845866,0.000666,60]
[320934579,1711716678604,-7085.1,0.000666,60]
[320934580,1711716678617,-3946.5,0.000666,60]
[320934581,1711716678630,-7265.7,0.000666,60]
[320934582,1711716678650,-500.0,0.00058356,120]
[320934583,1711716678660,-6674.66001747,0.000666,60]
[320934584,1711716678674,-18941.64005638,0.000666,60]
[320934585,1711716678835,-1467761.61810946,0.000666,60]
[320934586,1711716678848,-82928.09662577,0.000666,60]
[320934587,1711716679561,971434.76751958,0.00025,2]
[320934588,1711716679585,5000000.0,0.00025,2]
[320934589,1711716679664,4156.26278162,0.000154,2]
[320934590,1711716693611,2175.23563188,0.0001,2]
[320934591,1711716698706,4302.91906703,0.00011,2]
[320934592,1711716718263,1649.9647029,6.94e-05,2]
[320934594,1711716741029,337.37087437,0.0001045,2]
[320934595,1711716756461,24289.28037886,0.00011,2]
[320934596,1711716762079,1363.92466986,0.00011,2]
[320934597,1711716774120,3427.16753997,0.00011,2]
[320934598,1711716837994,-155.0,0.00024799,2]
[320934599,1711716838017,-200.0,0.000248,2]
[320934600,1711716838039,-680.68044746,0.00024993,2]
[320934601,1711716838062,-1235.9098832,0.00024994,2]
[320934602,1711716838084,-1382.11586367,0.00024994,2]
[320934603,1711716838107,-1716.29380567,0.00024995,2]
[320934605,1711716859757,999.999999,0.0002,2]
[320934606,1711716872296,1853.83220971,0.00015,2]
[320934609,1711716880112,167.93,0.00021,2]
[320934611,1711716994422,317.77309168,0.00021,2]
[320934612,1711717040486,24571.52649766,0.00021,2]
[320934613,1711717062491,4072.96111763,0.00021,2]
[320934614,1711717140246,308.8,0.00025915,120]
[320934615,1711717141225,1021.26,0.00021118,2]
[320934616,1711717155353,500.0,0.00022963,2]
[320934617,1711717218423,2757.74,0.00022972,2]
[320934618,1711717234683,1040.18522991,0.00022963,2]
[320934619,1711717236928,155.0,0.00022963,2]
[320934620,1711717241483,322.93917993,0.00022963,2]
[320934621,1711717244340,155.47290894,0.00022963,2]
[320934633,1711717250809,18694.57447643,0.00022963,2]
[320934634,1711717269418,224.99,0.00023026,5]
[320934635,1711717284622,-549.18620738,0.00023015,2]
[320934636,1711717284644,-536.48581504,0.00023015,2]
[320934637,1711717284667,-216.9117649,0.00023015,2]
[320934638,1711717284700,-155.0,0.00023015,2]
[320934639,1711717284726,-155.0,0.00023015,2]
[320934640,1711717284750,-777.54370737,0.00023015,2]
[320934641,1711717284771,-155.0,0.00023016,2]
[320934642,1711717284792,-155.0,0.00023016,2]
[320934643,1711717284814,-2139.4702675,0.00023016,2]
[320934644,1711717284839,-614.74712338,0.00023016,2]
[320934645,1711717284862,-205.70306363,0.00023016,2]
[320934646,1711717284883,-165.28377532,0.00023016,2]
[320934647,1711717284905,-155.0,0.00023016,2]
[320934648,1711717284927,-1230.60425694,0.00023016,2]
[320934649,1711717284948,-156.42178709,0.00023017,2]
[320934650,1711717284969,-404.32900438,0.00023017,2]
[320934651,1711717284990,-580.63858897,0.00023017,2]
[320934652,1711717285012,-1240.64379315,0.00023017,2]
[320934653,1711717285033,-1000.0,0.00023017,2]
[320934654,1711717285058,-4310.29399998,0.00023017,2]
[320934655,1711717285081,-341.53652261,0.00023018,2]
[320934656,1711717285102,-315.20032236,0.00023018,2]
[320934657,1711717290375,3124.46,0.00022822,2]
[320934658,1711717300484,257.45060657,0.00022743,2]
[320934659,1711717301333,156.20152961,0.00021546,2]
[320934660,1711717325198,-4559.33586381,0.0002301,2]
[320934661,1711717325222,-155.0,0.0002301,2]
[320934662,1711717325246,-2347.63404214,0.0002301,2]
[320934663,1711717325269,-155.0,0.0002301,2]
[320934664,1711717325292,-4384.77639282,0.0002301,2]
[320934665,1711717325318,-747.34660036,0.00023011,2]
[320934666,1711717325340,-485.90794693,0.00023011,2]
[320934667,1711717325365,-155.0,0.00023011,2]
[320934668,1711717325387,-11425.99915394,0.00023011,2]
[320934669,1711717332256,250.0,0.00022827,2]
[320934670,1711717338171,746.88303178,0.00021546,2]
[320934671,1711717344595,159.82797874,0.00021546,2]
[320934672,1711717345980,1230.60425694,0.00022743,2]
[320934673,1711717354497,2486.60095031,0.00021546,2]
[320934674,1711717366489,1229.18734916,0.00022743,2]
[320934675,1711717423471,277.63102184,0.00022999,2]
[320934676,1711717426265,450.46542269,0.00022999,2]
[320934677,1711717426413,1000.0,0.00022999,2]
[320934678,1711717426480,777.54370737,0.00022999,2]
[320934679,1711717433801,4981.6,0.00022805,2]
[320934680,1711717434918,2021.6695763,0.00022999,2]
[320934681,1711717444273,450.46542269,0.00022503,2]
[320934682,1711717447971,4704.44008421,0.00022999,2]
[320934683,1711717452111,155.0,0.00022999,2]
[320934684,1711717457298,5948.31165156,0.00022999,2]
[320934685,1711717458772,437.38748594,0.00022999,2]
[320934686,1711717461793,199.29072248,0.00022999,2]
[320934687,1711717463427,3067.66199381,0.00022999,2]
[320934688,1711717465256,235.06269369,0.00022503,2]
[320934689,1711717467332,155.0,0.00022999,2]
[320934690,1711717467777,1235.9098832,0.00022999,2]
[320934691,1711717468253,400.0,0.00022999,2]
[320934692,1711717469561,614.74712338,0.00022999,2]
[320934693,1711717470588,2980.71114309,0.00022999,2]
[320934694,1711717470615,5518.64432742,0.00022999,2]
[320934695,1711717471151,680.68044746,0.00022999,2]
[320934696,1711717473517,214.92011281,0.00022999,2]
[320934697,1711717474306,4384.77639282,0.00022999,2]
[320934698,1711717475099,484.78732066,0.00022999,2]
[320934699,1711717476479,1238.0053581,0.00022999,2]
[320934700,1711717477977,155.0,0.00022999,2]
[320934701,1711717498341,11234.67030642,0.00022999,2]
[320934702,1711717507593,23890.0,0.00022846,2]
[320934703,1711717534679,2273.39,0.00022818,2]
[320934704,1711717536877,960.18,0.00022818,2]
[320934705,1711717541496,167.91,0.00022818,2]
[320934706,1711717551778,536.48581504,0.00023,2]
[320934707,1711717554091,4180.97479576,0.00023,2]
[320934708,1711717564806,1219.18866587,0.00023,2]
[320934709,1711717567502,1000.0,0.00023,2]
[320934710,1711717624863,500.0,0.00022735,2]
[320934711,1711717650488,1563.01,0.00022724,2]
[320934712,1711717665633,271.64,0.00022724,2]
[320934713,1711717677589,1056.47,0.00020793,2]
[320934714,1711717725122,10814.9771,0.00022927,2]
[320934715,1711717727040,154.0,0.00022715,2]
[320934716,1711717727498,154.0,0.000265,120]
[320934717,1711717746134,-437.38748594,0.00023009,2]
[320934718,1711717746154,-214.92011281,0.00023009,2]
[320934719,1711717746173,-1000.0,0.0002301,2]
[320934720,1711717746194,-536.48581504,0.00023011,2]
[320934721,1711717746217,-433.89618621,0.00023012,2]
[320934722,1711717796074,2082.64,0.00022743,2]
[320934723,1711717827986,250.0,0.00022727,2]
[320934740,1711717832122,-1000.0,0.00023007,2]
[320934741,1711717832134,-16.27333657,0.00023008,2]
[320934742,1711717832256,-3128.90943956,0.00023008,2]
[320934743,1711717832287,-1035.79201963,0.00023008,2]
[320934744,1711717832296,-133.74417531,0.00023015,2]
[320934745,1711717832308,-339.32582469,0.00023015,2]
[320934746,1711717832317,-59.04753965,0.00023025,2]
[320934747,1711717832394,-91.94246035,0.00023025,2]
[320934748,1711717832405,-300.0,0.00023027,2]
[320934749,1711717832414,-150.0,0.00023027,2]
[320934750,1711717832423,-1000.0,0.00023027,2]
[320934751,1711717832433,-2103.33402281,0.00023028,2]
[320934763,1711717833024,-10660.59743019,0.00023028,2]
[320934764,1711717833033,-308.8,0.00023035,2]
[320934765,1711717833042,-719.09,0.00023035,2]
[320934766,1711717833051,-2436.0,0.00023035,2]
[320934767,1711717833061,-1056.47,0.00023057,2]
[320934768,1711717833070,-473.07,0.00023078,2]
[320934769,1711717833079,-332.05147299,0.000231,2]
[320934770,1711717833089,-988.8208037,0.000231,2]
[320934771,1711717833104,-1902.37,0.000231,2]
[320934772,1711717833115,-1016.81046128,0.000231,2]
[320934773,1711717833126,-618.73499999,0.000231,2]
[320934774,1711717833138,-2207.73331184,0.000231,2]
[320934798,1711717838086,-3265.52042319,0.000231,2]
[320934800,1711717838095,-150.99,0.000231,2]
[320934801,1711717838105,-6156.64,0.000231,2]
[320934802,1711717838113,-150.99,0.000231,2]
[320934803,1711717838123,-473.07,0.00023142,2]
[320934804,1711717838132,-473.07,0.00023205,2]
[320934805,1711717838142,-473.07,0.00023268,2]
[320934806,1711717838151,-176.3,0.00023299,2]
[320934807,1711717838160,-473.07,0.00023331,2]
[320934808,1711717838170,-499.99,0.00023382,2]
[320934809,1711717838179,-150.99,0.00023382,2]
[320934810,1711717838188,-533.4,0.00023382,2]
[320934811,1711717838197,-473.07,0.00023394,2]
[320934812,1711717838206,-473.07,0.00023457,2]
[320934813,1711717838215,-473.07,0.0002352,2]
[320934814,1711717838224,-169.23,0.00023545,2]
[320934815,1711717838233,-1923.07231129,0.00023582,2]
[320934816,1711717838242,-473.07,0.00023583,2]
[320934817,1711717838251,-473.07,0.00023647,2]
[320934818,1711717838261,-2866.98919122,0.000237,2]
[320934819,1711717838271,-249.43551549,0.000237,2]
[320934820,1711717838281,-473.07,0.0002371,2]
[320934821,1711717838290,-473.07,0.00023773,2]
[320934822,1711717838299,-800.0,0.00023808,2]
[320934823,1711717838308,-155.0,0.0002382,2]
[320934824,1711717838317,-999.99,0.00023828,2]
[320934825,1711717838328,-2476.73336292,0.00023829,2]
[320934826,1711717838336,-1404.03,0.0002383,2]
[320934827,1711717838345,-600.0,0.00023836,2]
[320934828,1711717838354,-1404.03,0.00023836,2]
[320934829,1711717838362,-473.07,0.00023836,2]
[320934830,1711717838371,-8183.96686751,0.00023839,2]
[320934831,1711717838380,-21070.29208921,0.00023839,2]
[320934832,1711717838389,-805.24113731,0.00023842,2]
[320934833,1711717838398,-5853.75004831,0.00023842,2]
[320934835,1711717838407,-1404.03,0.00023842,2]
[320934836,1711717838416,-1404.03,0.00023848,2]
[320934838,1711717838425,-1404.03,0.00023855,2]
[320934840,1711717838434,-1404.03,0.00023861,2]
[320934842,1711717838443,-51601.347,0.00023861,2]
[320934844,1711717838451,-1404.03,0.00023867,2]
[320934846,1711717838460,-1404.03,0.00023874,2]
[320934848,1711717838469,-1404.03,0.0002388,2]
[320934850,1711717838478,-1404.03,0.00023886,2]
[320934852,1711717838487,-800.0,0.0002389,2]
[320934854,1711717838496,-1404.03,0.00023892,2]
[320934856,1711717838505,-1404.03,0.00023899,2]
[320934858,1711717838514,-473.07,0.00023899,2]
[320934861,1711717838523,-1404.03,0.00023905,2]
[320934863,1711717838534,-1404.03,0.00023911,2]
[320934866,1711717838544,-1404.03,0.00023917,2]
[320934868,1711717838553,-2505.41159512,0.00023918,2]
[320934870,1711717838562,-1404.03,0.00023924,2]
[320934872,1711717838571,-437.90281178,0.00023928,2]
[320934874,1711717838580,-1404.03,0.0002393,2]
[320934876,1711717838590,-494.47,0.00023932,2]
[320934878,1711717838599,-494.47,0.00023932,2]
[320934880,1711717838607,-1404.03,0.00023936,2]
[320934882,1711717838616,-635.00393716,0.0002394,2]
[320934884,1711717838626,-283.70619433,0.0002394,2]
[320934886,1711717838634,-347.53310012,0.0002394,2]
[320934888,1711717838644,-163.31261407,0.0002394,2]
[320934890,1711717838655,-1337.7936167,0.0002394,2]
[320934892,1711717838664,-198.01271924,0.0002394,2]
[320934894,1711717838673,-218.12076489,0.0002394,2]
[320934896,1711717838683,-155.39919849,0.0002394,2]
[320934898,1711717838694,-215.48426085,0.0002394,2]
[320934900,1711717838703,-548.5064927,0.0002394,2]
[320934902,1711717838712,-403.844893,0.0002394,2]
[320934904,1711717838722,-1334.43128054,0.0002394,2]
[320934906,1711717838732,-207.50942169,0.0002394,2]
[320934908,1711717838742,-2064.77373334,0.0002394,2]
[320934910,1711717838752,-155.47530298,0.0002394,2]
[320934912,1711717838761,-850.0986575,0.0002394,2]
[320934914,1711717838771,-269.31706662,0.0002394,2]
[320934916,1711717838782,-2456.26805018,0.0002394,2]
[320934918,1711717838791,-309.2652349,0.0002394,2]
[320934920,1711717838800,-155.52946097,0.0002394,2]
[320934922,1711717838810,-485.39376951,0.0002394,2]
[320934924,1711717838819,-166.40609062,0.0002394,2]
[320934926,1711717838831,-307.22204314,0.0002394,2]
[320934928,1711717838840,-276.83457553,0.0002394,2]
[320934930,1711717838850,-797.49258757,0.0002394,2]
[320934932,1711717838860,-3014.81305239,0.0002394,2]
[320934934,1711717838870,-155.29479356,0.0002394,2]
[320934936,1711717838880,-5941.50056652,0.0002394,2]
[320934938,1711717838889,-5000.0,0.0002394,2]
[320934940,1711717838899,-332.8031264,0.0002394,2]
[320934942,1711717838908,-400.0,0.0002394,2]
[320934944,1711717838917,-260.60463388,0.0002394,2]
[320934946,1711717838927,-2205.12877017,0.0002394,2]
[320934948,1711717838937,-611.17457272,0.0002394,2]
[320934950,1711717838947,-4362.75284551,0.0002394,2]
[320934952,1711717838956,-349.87831954,0.0002394,2]
[320934954,1711717838965,-681.11780197,0.0002394,2]
[320934956,1711717838975,-1697.07235152,0.0002394,2]
[320934959,1711717838985,-484.23187478,0.0002394,2]
[320934961,1711717838994,-184.29783947,0.0002394,2]
[320934962,1711717839004,-1235.91343769,0.0002394,2]
[320934964,1711717839013,-1217.08724674,0.0002394,2]
[320934966,1711717839022,-155.70144668,0.0002394,2]
[320934968,1711717839036,-530.08303492,0.0002394,2]
[320934970,1711717839046,-955.9882,0.0002394,2]
[320934973,1711717839058,-214.13269488,0.0002394,2]
[320934975,1711717839068,-246.28046938,0.0002394,2]
[320934977,1711717839080,-541.63713345,0.0002394,2]
[320934979,1711717839089,-155.0,0.00023941,2]
[320934981,1711717839099,-500.0,0.00023941,2]
[320934983,1711717839108,-500.0,0.00023941,2]
[320934985,1711717839117,-205.93218253,0.00023941,2]
[320934987,1711717839126,-206.72187177,0.00023941,2]
[320934989,1711717839137,-500.0,0.00023941,2]
[320934991,1711717839146,-500.0,0.00023941,2]
[320934993,1711717839156,-500.0,0.00023941,2]
[320934995,1711717839165,-500.0,0.00023941,2]
[320934996,1711717839174,-500.0,0.00023941,2]
[320934999,1711717839183,-500.0,0.00023941,2]
[320935000,1711717839193,-500.0,0.00023941,2]
[320935002,1711717839203,-500.0,0.00023941,2]
[320935004,1711717839212,-500.0,0.00023941,2]
[320935006,1711717839221,-500.0,0.00023941,2]
[320935008,1711717839232,-500.0,0.00023941,2]
[320935010,1711717839241,-500.0,0.00023941,2]
[320935012,1711717839250,-500.0,0.00023941,2]
[320935014,1711717839259,-500.0,0.00023941,2]
[320935016,1711717839268,-500.0,0.00023941,2]
[320935017,1711717839277,-594.86716065,0.00023941,2]
[320935018,1711717839291,-500.0,0.00023941,2]
[320935019,1711717839300,-500.0,0.00023941,2]
[320935020,1711717839309,-500.0,0.00023941,2]
[320935021,1711717839318,-500.0,0.00023941,2]
[320935022,1711717839327,-500.0,0.00023941,2]
[320935023,1711717839336,-500.0,0.00023941,2]
[320935024,1711717839344,-500.0,0.00023941,2]
[320935025,1711717839353,-500.0,0.00023941,2]
[320935026,1711717839362,-500.0,0.00023941,2]
[320935027,1711717839370,-500.0,0.00023941,2]
[320935029,1711717839379,-500.0,0.00023941,2]
[320935031,1711717839388,-500.0,0.00023941,2]
[320935033,1711717839397,-500.0,0.00023941,2]
[320935035,1711717839406,-500.0,0.00023941,2]
[320935037,1711717839415,-500.0,0.00023941,2]
[320935039,1711717839424,-224440.20699589,0.00023942,2]
[320935041,1711717839433,-1404.03,0.00023943,2]
[320935043,1711717839443,-1404.03,0.00023949,2]
[320935045,1711717839453,-8183.96686744,0.00023957,2]
[320935047,1711717839462,-21070.29208917,0.00023957,2]
[320935049,1711717839471,-473.07,0.00023962,2]
[320935050,1711717839480,-5853.7500483,0.00023993,2]
[320935051,1711717839489,-224.10750396,0.00024,2]
[320935052,1711717839498,-473.07,0.00024025,2]
[320935053,1711717839507,-8183.96686744,0.00024075,2]
[320935054,1711717839517,-21070.29208917,0.00024075,2]
[320935055,1711717839527,-473.07,0.00024088,2]
[320935056,1711717839538,-805.24113727,0.00024107,2]
[320935057,1711717839547,-6737.63328167,0.00024109,2]
[320935058,1711717839556,-5853.7500483,0.00024144,2]
[320935060,1711717839565,-473.07,0.00024152,2]
[320935062,1711717839574,-8183.96686744,0.00024193,2]
[320935064,1711717839583,-21070.29208917,0.00024193,2]
[320935066,1711717839593,-473.07,0.00024215,2]
[320935068,1711717839602,-5853.7500483,0.00024295,2]
[320935070,1711717839611,-179.89731775,0.00024301,2]
[320935072,1711717839621,-8183.96686744,0.00024311,2]
[320935074,1711717839630,-21070.29208917,0.00024311,2]
[320935076,1711717839640,-805.24113727,0.00024371,2]
[320935078,1711717839653,-253.92224754,0.00024386,2]
[320935080,1711717839662,-155.0,0.00024386,2]
[320935082,1711717839672,-155.0,0.00024386,2]
[320935084,1711717839681,-156.1685135,0.00024386,2]
[320935086,1711717839691,-155.0,0.00024386,2]
[320935089,1711717839701,-193.81106388,0.00024386,2]
[320935090,1711717839710,-155.0,0.00024386,2]
[320935093,1711717839719,-225.39623599,0.00024386,2]
[320935094,1711717839730,-3516.5421611,0.00024387,2]
[320935096,1711717839739,-603.65498531,0.00024388,2]
[320935099,1711717839749,-262.27698996,0.00024393,2]
[320935101,1711717839759,-494.47,0.00024418,2]
[320935102,1711717839768,-8183.96686744,0.00024428,2]
[320935103,1711717839777,-21070.29208917,0.00024428,2]
[320935104,1711717839788,-5853.7500483,0.00024447,2]
[320935105,1711717839797,-444.80508524,0.00024498,2]
[320935106,1711717839806,-8183.96686744,0.00024546,2]
[320935107,1711717839815,-21070.29208917,0.00024546,2]
[320935108,1711717839824,-5853.7500483,0.00024598,2]
[320935109,1711717839834,-805.24113727,0.00024636,2]
[320935110,1711717839843,-8183.96686744,0.00024664,2]
[320935111,1711717839852,-21070.29208917,0.00024664,2]
[320935112,1711717839862,-302.10885243,0.00024748,2]
[320935113,1711717839871,-5853.7500483,0.00024749,2]
[320935114,1711717839880,-8183.96686744,0.00024782,2]
[320935118,1711717840035,-21070.29208917,0.00024782,2]
[320935119,1711717840045,-533.89085872,0.000248,2]
[320935120,1711717840054,-170.13852396,0.000248,2]
[320935121,1711717840064,-494.47,0.0002489,2]
[320935122,1711717840073,-273.13675225,0.00024898,2]
[320935123,1711717840082,-186.45093788,0.00024898,2]
[320935124,1711717840091,-163.56941415,0.00024899,2]
[320935125,1711717840100,-1756.57153444,0.00024899,2]
[320935126,1711717840109,-190.47272846,0.000249,2]
[320935127,1711717840118,-151.69724411,0.000249,2]
[320935128,1711717840129,-165.24873058,0.000249,2]
[320935129,1711717840138,-68414.32792782,0.000249,2]
[320935130,1711717840147,-805.24113727,0.000249,2]
[320935131,1711717840156,-179.6029038,0.000249,2]
[320935132,1711717840165,-576.0669079,0.000249,2]
[320935133,1711717840174,-1464.56230946,0.000249,2]
[320935134,1711717840182,-5853.7500483,0.000249,2]
[320935135,1711717840191,-2488.83729315,0.000249,2]
[320935136,1711717840201,-8183.96686744,0.000249,2]
[320935137,1711717840210,-733.6472028,0.000249,9]
[320935138,1711717840219,-9329.96122331,0.000249,2]
[320935139,1711717840228,-59897.87103738,0.000249,2]
[320935140,1711717840237,-503.21123768,0.000249,2]
[320935141,1711717840246,-3749.85022398,0.000249,2]
[320935142,1711717840255,-21070.29208917,0.000249,2]
[320935143,1711717840263,-163.48,0.00024941,2]
[320935144,1711717840272,-179.89731775,0.0002499,2]
[320935145,1711717840281,-494.47,0.0002499,2]
[320935146,1711717840293,-494.47,0.0002499,2]
[320935147,1711717840302,-494.47,0.0002499,2]
[320935148,1711717840311,-494.47,0.0002499,2]
[320935149,1711717840320,-494.47,0.0002499,2]
[320935150,1711717840330,-494.47,0.0002499,2]
[320935151,1711717840339,-170.18021353,0.00024998,2]
[320935152,1711717840349,-199.80953936,0.00024998,2]
[320935153,1711717840358,-155.70778337,0.00024998,2]
[320935154,1711717840367,-315.49159155,0.00024998,2]
[320935155,1711717840377,-343.59981422,0.00024998,2]
[320935156,1711717840386,-156.49908672,0.00024998,2]
[320935157,1711717840396,-247.69375299,0.00024998,2]
[320935158,1711717840405,-262.26705623,0.00024998,2]
[320935159,1711717840414,-357.98492609,0.00024998,2]
[320935160,1711717840423,-291.06508669,0.00024998,2]
[320935161,1711717840432,-283.65219958,0.00024998,2]
[320935162,1711717840442,-260.7652174,0.00024998,2]
[320935163,1711717840451,-155.0,0.00024998,2]
[320935164,1711717840460,-155.0,0.00024998,2]
[320935165,1711717840470,-448.65735592,0.00024998,2]
[320935166,1711717840479,-235.35674052,0.00024998,2]
[320935167,1711717840489,-155.0,0.00024998,2]
[320935168,1711717840498,-3505.6650676,0.00024998,2]
[320935169,1711717840508,-155.0,0.00024998,2]
[320935170,1711717840517,-155.19389774,0.00024998,2]
[320935171,1711717840526,-649.33286182,0.00024998,2]
[320935172,1711717840538,-2167.17725752,0.00024998,2]
[320935173,1711717840547,-265.90282322,0.00024998,2]
[320935174,1711717840557,-620.01543082,0.00024998,2]
[320935175,1711717840566,-313.09081825,0.00024999,2]
[320935176,1711717840575,-155.36323052,0.00024999,2]
[320935177,1711717840585,-406.77867836,0.00024999,2]
[320935179,1711717840594,-173.50615394,0.00024999,2]
[320935180,1711717840603,-227.77830861,0.00024999,2]
[320935182,1711717840612,-782.46630242,0.00024999,2]
[320935183,1711717840621,-197.55454421,0.00024999,10]
[320935184,1711717840630,-24511910.46493502,0.00025,2]
[320935185,1711717840840,-4771163.51416565,0.00025,2]
[320935186,1711717840849,-1364.15268736,0.00025,2]
[320935187,1711717840859,-2596.06574678,0.00025,2]
[320935188,1711717840868,-155.0,0.00025,2]
[320935189,1711717840878,-155.0,0.00025,2]
[320935190,1711717840887,-162.64,0.00025,2]
[320935191,1711717840896,-221.79,0.00025,2]
[320935192,1711717840906,-297.57,0.00025,2]
[320935193,1711717840915,-3108.47569485,0.000251,2]
[320935194,1711717840924,-151.69724403,0.00025267,2]
[320935195,1711717840934,-1056.47,0.00025321,2]
[320935196,1711717840942,-164.0,0.0002533,2]
[320935197,1711717840952,-210.0,0.0002533,2]
[320935198,1711717840960,-2082.64,0.00025483,2]
[320935199,1711717840969,-169.23,0.00025488,2]
[320935200,1711717840978,-2593.39,0.00025605,2]
[320935201,1711717840987,-151.69724403,0.00025634,2]
[320935202,1711717840996,-167.91,0.00025671,2]
[320935203,1711717841005,-151.69724403,0.00026,2]
[320935204,1711717841014,-151.69724403,0.00026367,2]
[320935205,1711717841023,-10989.89,0.00026575,2]
[320935206,1711717841031,-151.69724403,0.00026734,2]
[320935207,1711717841041,-151.69724403,0.00027101,2]
[320935208,1711717841051,-165.0101441,0.00027397,2]
[320935209,1711717841060,-79554.45,0.00027397,2]
[320935210,1711717841070,-15717.22,0.00027397,2]
[320935211,1711717841079,-250.0,0.00027397,2]
[320935212,1711717841088,-169.23,0.00027431,2]
[320935213,1711717841098,-151.69724403,0.00027467,2]
[320935214,1711717841107,-1056.47,0.00027585,2]
[320935215,1711717841116,-163.48,0.00027587,2]
[320935216,1711717841126,-533.89085863,0.000277,2]
[320935217,1711717841135,-151.69724403,0.00027834,2]
[320935218,1711717841144,-293.0,0.00027863,2]
[320935219,1711717841154,-1019.73936635,0.00028,10]
[320935220,1711717841163,-23510.85096421,0.00028,2]
[320935221,1711717841172,-470.21701928,0.00028,2]
[320935222,1711717841181,-151.69724403,0.00028201,2]
[320935223,1711717841190,-2082.64,0.00028223,2]
[320935224,1711717841199,-600.0,0.00028491,2]
[320935225,1711717841208,-360.53539958,0.00028491,2]
[320935226,1711717841217,-167.91,0.00028523,2]
[320935227,1711717841226,-308.8,0.00028794,120]
[320935228,1711717841235,-559.62274197,0.00029,2]